Department Family,Entity,Date,Expense Type,Expense Area,Supplier,Transaction Number,AP Amount
Department of Health,NHS Barnsley CCG,31/10/2021,Clinical&Medical-Clinical Other,PRIMARY CARE DEVELOPMENT,BARNSLEY HEALTHCARE FEDERATION,38379848,"54,166.67"
Department of Health,NHS Barnsley CCG,31/10/2021,C&M-GP PRACTICE REVENUE - PCTF,LOCAL ENHANCED SERVICES,BARNSLEY HEALTHCARE FEDERATION,38379868,"126,067.75"
Department of Health,NHS Barnsley CCG,31/10/2021,C&M-APMS Contract Value,PRC DELEGATED CO-COMMISSIONING,BARNSLEY HEALTHCARE FEDERATION,38424346,"31,057.07"
Department of Health,NHS Barnsley CCG,31/10/2021,C&M-APMS LONG COVID ES,PRC DELEGATED CO-COMMISSIONING,BARNSLEY HEALTHCARE FEDERATION,38424346,510.33
Department of Health,NHS Barnsley CCG,31/10/2021,C&M-APMS OOH Opt Outs,PRC DELEGATED CO-COMMISSIONING,BARNSLEY HEALTHCARE FEDERATION,38424346,8.69
Department of Health,NHS Barnsley CCG,31/10/2021,C&M-APMS PCN DES Participation,PRC DELEGATED CO-COMMISSIONING,BARNSLEY HEALTHCARE FEDERATION,38424346,564.47
Department of Health,NHS Barnsley CCG,31/10/2021,C&M-APMS Prem Actual Rent,PRC DELEGATED CO-COMMISSIONING,BARNSLEY HEALTHCARE FEDERATION,38424346,"1,310.42"
Department of Health,NHS Barnsley CCG,31/10/2021,C&M-APMS Prem Rates,PRC DELEGATED CO-COMMISSIONING,BARNSLEY HEALTHCARE FEDERATION,38424346,511.00
Department of Health,NHS Barnsley CCG,31/10/2021,C&M-APMS Prem Water Rates,PRC DELEGATED CO-COMMISSIONING,BARNSLEY HEALTHCARE FEDERATION,38424346,57.67
Department of Health,NHS Barnsley CCG,31/10/2021,C&M-APMS QOF Aspiration,PRC DELEGATED CO-COMMISSIONING,BARNSLEY HEALTHCARE FEDERATION,38424346,"2,634.94"
Department of Health,NHS Barnsley CCG,31/10/2021,C&M-APMS Contract Value,PRC DELEGATED CO-COMMISSIONING,BARNSLEY HEALTHCARE FEDERATION,38424348,"31,631.51"
Department of Health,NHS Barnsley CCG,31/10/2021,C&M-APMS DES Learn Dsblty Hlth Chk,PRC DELEGATED CO-COMMISSIONING,BARNSLEY HEALTHCARE FEDERATION,38424348,280.00
Department of Health,NHS Barnsley CCG,31/10/2021,C&M-APMS LONG COVID ES,PRC DELEGATED CO-COMMISSIONING,BARNSLEY HEALTHCARE FEDERATION,38424348,549.57
Department of Health,NHS Barnsley CCG,31/10/2021,C&M-APMS OOH Opt Outs,PRC DELEGATED CO-COMMISSIONING,BARNSLEY HEALTHCARE FEDERATION,38424348,45.30
Department of Health,NHS Barnsley CCG,31/10/2021,C&M-APMS PCN DES Participation,PRC DELEGATED CO-COMMISSIONING,BARNSLEY HEALTHCARE FEDERATION,38424348,580.08
Department of Health,NHS Barnsley CCG,31/10/2021,C&M-APMS Prem Actual Rent,PRC DELEGATED CO-COMMISSIONING,BARNSLEY HEALTHCARE FEDERATION,38424348,"2,150.00"
Department of Health,NHS Barnsley CCG,31/10/2021,C&M-APMS Prem Healthcentre Rent,PRC DELEGATED CO-COMMISSIONING,BARNSLEY HEALTHCARE FEDERATION,38424348,"7,733.91"
Department of Health,NHS Barnsley CCG,31/10/2021,C&M-APMS Prem Rates,PRC DELEGATED CO-COMMISSIONING,BARNSLEY HEALTHCARE FEDERATION,38424348,511.00
Department of Health,NHS Barnsley CCG,31/10/2021,C&M-APMS QOF Aspiration,PRC DELEGATED CO-COMMISSIONING,BARNSLEY HEALTHCARE FEDERATION,38424348,"2,577.74"
Department of Health,NHS Barnsley CCG,31/10/2021,C&M-APMS Contract Value,PRC DELEGATED CO-COMMISSIONING,BARNSLEY HEALTHCARE FEDERATION,38424350,"29,046.73"
Department of Health,NHS Barnsley CCG,31/10/2021,C&M-APMS DES Learn Dsblty Hlth Chk,PRC DELEGATED CO-COMMISSIONING,BARNSLEY HEALTHCARE FEDERATION,38424350,"1,540.00"
Department of Health,NHS Barnsley CCG,31/10/2021,C&M-APMS LONG COVID ES,PRC DELEGATED CO-COMMISSIONING,BARNSLEY HEALTHCARE FEDERATION,38424350,576.61
Department of Health,NHS Barnsley CCG,31/10/2021,C&M-APMS OOH Opt Outs,PRC DELEGATED CO-COMMISSIONING,BARNSLEY HEALTHCARE FEDERATION,38424350,15.15
Department of Health,NHS Barnsley CCG,31/10/2021,C&M-APMS PCN DES Participation,PRC DELEGATED CO-COMMISSIONING,BARNSLEY HEALTHCARE FEDERATION,38424350,532.68
Department of Health,NHS Barnsley CCG,31/10/2021,C&M-APMS Prem Actual Rent,PRC DELEGATED CO-COMMISSIONING,BARNSLEY HEALTHCARE FEDERATION,38424350,"6,200.00"
Department of Health,NHS Barnsley CCG,31/10/2021,C&M-APMS Prem Rates,PRC DELEGATED CO-COMMISSIONING,BARNSLEY HEALTHCARE FEDERATION,38424350,"1,073.00"
Department of Health,NHS Barnsley CCG,31/10/2021,C&M-APMS QOF Aspiration,PRC DELEGATED CO-COMMISSIONING,BARNSLEY HEALTHCARE FEDERATION,38424350,"2,741.19"
Department of Health,NHS Barnsley CCG,31/10/2021,Clinical&Medical-Commercial Sector,OUT OF HOURS,BARNSLEY HEALTHCARE FEDERATION,38474812,"143,888.44"
Department of Health,NHS Barnsley CCG,31/10/2021,C&M-PMS Contract Value,PRC DELEGATED CO-COMMISSIONING,BARNSLEY HEALTHCARE FEDERATION CIC (GOLDTHORPE),38424355,"44,229.93"
Department of Health,NHS Barnsley CCG,31/10/2021,C&M-PMS LONG COVID ES,PRC DELEGATED CO-COMMISSIONING,BARNSLEY HEALTHCARE FEDERATION CIC (GOLDTHORPE),38424355,720.56
Department of Health,NHS Barnsley CCG,31/10/2021,C&M-PMS Out of Hours Opt Outs,PRC DELEGATED CO-COMMISSIONING,BARNSLEY HEALTHCARE FEDERATION CIC (GOLDTHORPE),38424355,7.50
Department of Health,NHS Barnsley CCG,31/10/2021,C&M-PMS PCN DES Participation,PRC DELEGATED CO-COMMISSIONING,BARNSLEY HEALTHCARE FEDERATION CIC (GOLDTHORPE),38424355,802.47
Department of Health,NHS Barnsley CCG,31/10/2021,C&M-PMS Prem Healthcentre Rent,PRC DELEGATED CO-COMMISSIONING,BARNSLEY HEALTHCARE FEDERATION CIC (GOLDTHORPE),38424355,"12,404.58"
Department of Health,NHS Barnsley CCG,31/10/2021,C&M-PMS QOF Aspiration,PRC DELEGATED CO-COMMISSIONING,BARNSLEY HEALTHCARE FEDERATION CIC (GOLDTHORPE),38424355,"3,818.66"
Department of Health,NHS Barnsley CCG,31/10/2021,Hcare Srv Rec Fdtn Trust-Contract Baseline,ACUTE COMMISSIONING,BARNSLEY HOSPITAL NHS FOUNDATION TRUST,38427203,"17,695,941.00"
Department of Health,NHS Barnsley CCG,31/10/2021,Hcare Srv Rec Fdtn Trust-Contract Baseline,INTERMEDIATE CARE,BARNSLEY HOSPITAL NHS FOUNDATION TRUST,38427209,"203,751.00"
Department of Health,NHS Barnsley CCG,31/10/2021,Hcare Srv Rec Fdtn Trust-Contract Baseline,LONG TERM CONDITIONS,BARNSLEY HOSPITAL NHS FOUNDATION TRUST,38427214,"128,100.00"
Department of Health,NHS Barnsley CCG,31/10/2021,Cont Care- Prior Year Payments,Children's Continuing Care,BARNSLEY METROPOLITAN BOROUGH COUNCIL,38474677,"118,395.00"
Department of Health,NHS Barnsley CCG,31/10/2021,Cont Care- Prior Year Payments,Children's Continuing Care Personal Health Budgets,BARNSLEY METROPOLITAN BOROUGH COUNCIL,38474677,"28,744.00"
Department of Health,NHS Barnsley CCG,31/10/2021,Cont Care- Prior Year Payments,Children's Continuing Care,BARNSLEY METROPOLITAN BOROUGH COUNCIL,38474690,"118,782.00"
Department of Health,NHS Barnsley CCG,31/10/2021,Cont Care- Prior Year Payments,Children's Continuing Care Personal Health Budgets,BARNSLEY METROPOLITAN BOROUGH COUNCIL,38474690,"48,280.00"
Department of Health,NHS Barnsley CCG,31/10/2021,Clinical&Medical-Othe Public Sector,LEARNING DIFFICULTIES,BARNSLEY METROPOLITAN BOROUGH COUNCIL,38474818,"2,470.65"
Department of Health,NHS Barnsley CCG,31/10/2021,Clinical&Medical-Othe Public Sector,Learning Difficulties - S117,BARNSLEY METROPOLITAN BOROUGH COUNCIL,38474818,"169,657.59"
Department of Health,NHS Barnsley CCG,31/10/2021,Clinical&Medical-Othe Public Sector,Mental Health Services - S117 Mental Health,BARNSLEY METROPOLITAN BOROUGH COUNCIL,38474818,"808,913.24"
Department of Health,NHS Barnsley CCG,31/10/2021,Cont Care- Prior Year Payments,Learning Difficulties - S117,BARNSLEY METROPOLITAN BOROUGH COUNCIL,38474818,"2,867.27"
Department of Health,NHS Barnsley CCG,31/10/2021,Cont Care- Prior Year Payments,Mental Health Services - S117 Mental Health,BARNSLEY METROPOLITAN BOROUGH COUNCIL,38474818,"-2,277.29"
Department of Health,NHS Barnsley CCG,31/10/2021,C&M-APMS DES Extended Hours Access,PRC DELEGATED CO-COMMISSIONING,BHF - PCN,38354702,"31,698.00"
Department of Health,NHS Barnsley CCG,31/10/2021,C&M-APMS PCN DES Clinical Director,PRC DELEGATED CO-COMMISSIONING,BHF - PCN,38354702,"16,201.20"
Department of Health,NHS Barnsley CCG,31/10/2021,C&M- PCN DES CARE COORDINATOR,PRC DELEGATED CO-COMMISSIONING,BHF - PCN,38557143,"50,792.17"
Department of Health,NHS Barnsley CCG,31/10/2021,C&M- PCN DES Nursing Associate,PRC DELEGATED CO-COMMISSIONING,BHF - PCN,38557143,"9,591.97"
Department of Health,NHS Barnsley CCG,31/10/2021,C&M-PCN DES Clinical Pharmacist Advanced Practitioner,PRC DELEGATED CO-COMMISSIONING,BHF - PCN,38557143,"5,225.41"
Department of Health,NHS Barnsley CCG,31/10/2021,C&M-PCN DES HEALTH AND WELLBEING COACH,PRC DELEGATED CO-COMMISSIONING,BHF - PCN,38557143,"41,956.98"
Department of Health,NHS Barnsley CCG,31/10/2021,C&M-PCN DES PHARMACY TECHNICIANS,PRC DELEGATED CO-COMMISSIONING,BHF - PCN,38557143,"5,782.92"
Department of Health,NHS Barnsley CCG,31/10/2021,C&M-PCN DES Trainee Nursing Associate,PRC DELEGATED CO-COMMISSIONING,BHF - PCN,38557143,"7,727.33"
Department of Health,NHS Barnsley CCG,31/10/2021,C&M-PMS C&M-APMS PCN DES Physician Assoc,PRC DELEGATED CO-COMMISSIONING,BHF - PCN,38557143,"36,815.73"
Department of Health,NHS Barnsley CCG,31/10/2021,C&M-PMS PCN DES Clin Pharmacist,PRC DELEGATED CO-COMMISSIONING,BHF - PCN,38557143,"11,295.93"
Department of Health,NHS Barnsley CCG,31/10/2021,C&M-PMS PCN DES Soc Prescribing,PRC DELEGATED CO-COMMISSIONING,BHF - PCN,38557143,"16,806.11"
Department of Health,NHS Barnsley CCG,31/10/2021,Clinical&Medical-Commercial Sector,ACUTE COMMISSIONING,BMI HEALTHCARE LTD,38474809,"42,225.00"
Department of Health,NHS Barnsley CCG,31/10/2021,Cont Care- Retrospective Claims,CHC ADULT FULLY FUNDED,CARE COSTS LTD,38557139,"32,238.44"
Department of Health,NHS Barnsley CCG,31/10/2021,NON PUPOC CHC Income Tax Payable,Balance Sheet,CARE COSTS LTD,38557139,"-1,151.11"
Department of Health,NHS Barnsley CCG,31/10/2021,Clinical&Medical-Commercial Sector,ACUTE COMMISSIONING,CLAREMONT HOSPITAL,38474816,"63,707.00"
Department of Health,NHS Barnsley CCG,31/10/2021,Voids and Subsidies,RECHARGES NHS PROPERTY SERVICES LTD,COMMUNITY HEALTH PARTNERSHIPS LTD,38379877,"58,391.84"
Department of Health,NHS Barnsley CCG,30/09/2021,Voids and Subsidies,RECHARGES NHS PROPERTY SERVICES LTD,COMMUNITY HEALTH PARTNERSHIPS LTD,38214496,"58,391.84"
Department of Health,NHS Barnsley CCG,31/10/2021,Hcare Srv Rec Fdtn Trust-Contract Baseline,ACUTE COMMISSIONING,DONCASTER AND BASSETLAW HOSPITALS NHS FOUNDATION TRUST,38427289,"458,154.00"
Department of Health,NHS Barnsley CCG,31/10/2021,Clinical&Medical-Commercial Sector,LEARNING DIFFICULTIES,ELYSIUM HEALTHCARE LTD,38299847,"41,641.20"
Department of Health,NHS Barnsley CCG,31/10/2021,Clinical&Medical-Commercial Sector,LEARNING DIFFICULTIES,ELYSIUM HEALTHCARE LTD,38299852,"29,973.60"
Department of Health,NHS Barnsley CCG,31/10/2021,Clinical&Medical-Commercial Sector,Mental Health Services - S117 Mental Health,ELYSIUM HEALTHCARE LTD,38299857,"27,971.40"
Department of Health,NHS Barnsley CCG,31/10/2021,Cont Care-Learning Disab(65+),CHC ADULT FULLY FUNDED,EMERALD CARE SERVICES LTD,38474815,"36,900.98"
Department of Health,NHS Barnsley CCG,31/10/2021,Apprenticeship Levy Payable,BALANCE SHEET,HMRC,38401482,"1,717.00"
Department of Health,NHS Barnsley CCG,31/10/2021,Income tax <1Yr,BALANCE SHEET,HMRC,38401482,"88,120.12"
Department of Health,NHS Barnsley CCG,31/10/2021,Income tax <1Yr-Student Loans,BALANCE SHEET,HMRC,38401482,"3,507.00"
Department of Health,NHS Barnsley CCG,31/10/2021,National Insurance < 1 yr-NI- ERS,BALANCE SHEET,HMRC,38401482,"64,760.69"
Department of Health,NHS Barnsley CCG,31/10/2021,National Insurance < 1 yr-NI-EES,BALANCE SHEET,HMRC,38401482,"46,610.92"
Department of Health,NHS Barnsley CCG,31/10/2021,Recovery Notional SHPP,BALANCE SHEET,HMRC,38401482,-559.24
Department of Health,NHS Barnsley CCG,31/10/2021,Statutory Mat Pay < 1 yr,BALANCE SHEET,HMRC,38401482,"-3,774.87"
Department of Health,NHS Barnsley CCG,31/10/2021,C&M-GMS Practice Transformational Support,COMMISSIONING SCHEMES,NHS BARNSLEY CCG GP PRACTICE,38427090,"28,149.66"
Department of Health,NHS Barnsley CCG,31/10/2021,Clinical&Medical-Commercial Sector,LEARNING DIFFICULTIES,IMAGINE INDEPENDENCE,38299862,"25,540.80"
Department of Health,NHS Barnsley CCG,31/10/2021,Clinical&Medical-Commercial Sector,ACUTE COMMISSIONING,INHEALTH PAIN MANAGEMENT SOLUTIONS LTD,38474817,"42,725.88"
Department of Health,NHS Barnsley CCG,31/10/2021,Hcare Srv Rec NHS Trust-Contract Baseline,ACUTE COMMISSIONING,LEEDS TEACHING HOSPITALS NHS TRUST,38427299,"96,200.00"
Department of Health,NHS Barnsley CCG,31/10/2021,Hcare Srv Rec NHS Trust-Contract Baseline,ACUTE COMMISSIONING,MID YORKSHIRE HOSPITALS NHS TRUST,38427303,"284,581.00"
Department of Health,NHS Barnsley CCG,31/10/2021,C&M-GMS Practice Transformational Support,COMMISSIONING SCHEMES,NHS BARNSLEY CCG GP PRACTICE,38426981,"25,692.61"
Department of Health,NHS Barnsley CCG,31/10/2021,C&M-GMS DES Learn Dsblty Hlth Chk,PRC DELEGATED CO-COMMISSIONING,NHS BARNSLEY CCG GP PRACTICE,38612471,140.00
Department of Health,NHS Barnsley CCG,31/10/2021,C&M-GMS Global Sum,PRC DELEGATED CO-COMMISSIONING,NHS BARNSLEY CCG GP PRACTICE,38612471,"100,892.04"
Department of Health,NHS Barnsley CCG,31/10/2021,C&M-GMS LONG COVID ES,PRC DELEGATED CO-COMMISSIONING,NHS BARNSLEY CCG GP PRACTICE,38612471,"1,883.85"
Department of Health,NHS Barnsley CCG,31/10/2021,C&M-GMS PCN DES Participation,PRC DELEGATED CO-COMMISSIONING,NHS BARNSLEY CCG GP PRACTICE,38612471,"1,965.88"
Department of Health,NHS Barnsley CCG,31/10/2021,C&M-GMS PCO Other,PRC DELEGATED CO-COMMISSIONING,NHS BARNSLEY CCG GP PRACTICE,38612471,701.90
Department of Health,NHS Barnsley CCG,31/10/2021,C&M-GMS Prem Actual Rent,PRC DELEGATED CO-COMMISSIONING,NHS BARNSLEY CCG GP PRACTICE,38612471,"12,500.00"
Department of Health,NHS Barnsley CCG,31/10/2021,C&M-GMS Prem Healthcentre Rent,PRC DELEGATED CO-COMMISSIONING,NHS BARNSLEY CCG GP PRACTICE,38612471,"8,028.99"
Department of Health,NHS Barnsley CCG,31/10/2021,C&M-GMS Prem Rates,PRC DELEGATED CO-COMMISSIONING,NHS BARNSLEY CCG GP PRACTICE,38612471,"2,790.00"
Department of Health,NHS Barnsley CCG,31/10/2021,C&M-GMS QOF Aspiration,PRC DELEGATED CO-COMMISSIONING,NHS BARNSLEY CCG GP PRACTICE,38612471,"10,605.71"
Department of Health,NHS Barnsley CCG,31/10/2021,C&M-GMS DES Minor Surgery,PRC DELEGATED CO-COMMISSIONING,NHS BARNSLEY CCG GP PRACTICE,38612476,"5,924.18"
Department of Health,NHS Barnsley CCG,31/10/2021,C&M-GMS Global Sum,PRC DELEGATED CO-COMMISSIONING,NHS BARNSLEY CCG GP PRACTICE,38612476,"97,804.73"
Department of Health,NHS Barnsley CCG,31/10/2021,C&M-GMS LONG COVID ES,PRC DELEGATED CO-COMMISSIONING,NHS BARNSLEY CCG GP PRACTICE,38612476,"1,739.75"
Department of Health,NHS Barnsley CCG,31/10/2021,C&M-GMS PCN DES Participation,PRC DELEGATED CO-COMMISSIONING,NHS BARNSLEY CCG GP PRACTICE,38612476,"1,808.77"
Department of Health,NHS Barnsley CCG,31/10/2021,C&M-GMS Prem Healthcentre Rent,PRC DELEGATED CO-COMMISSIONING,NHS BARNSLEY CCG GP PRACTICE,38612476,"65,584.01"
Department of Health,NHS Barnsley CCG,31/10/2021,C&M-GMS QOF Aspiration,PRC DELEGATED CO-COMMISSIONING,NHS BARNSLEY CCG GP PRACTICE,38612476,"9,168.13"
Department of Health,NHS Barnsley CCG,31/10/2021,ME-GMS GP Pension EEs,PRC DELEGATED CO-COMMISSIONING,NHS BARNSLEY CCG GP PRACTICE,38612476,312.43
Department of Health,NHS Barnsley CCG,31/10/2021,C&M-PMS Contract Value,PRC DELEGATED CO-COMMISSIONING,NHS BARNSLEY CCG GP PRACTICE,38405347,-717.29
Department of Health,NHS Barnsley CCG,31/10/2021,C&M-PMS GP Statutory Levy,PRC DELEGATED CO-COMMISSIONING,NHS BARNSLEY CCG GP PRACTICE,38405347,-35.22
Department of Health,NHS Barnsley CCG,31/10/2021,C&M-PMS Out of Hours Opt Outs,PRC DELEGATED CO-COMMISSIONING,NHS BARNSLEY CCG GP PRACTICE,38405347,"-4,583.67"
Department of Health,NHS Barnsley CCG,31/10/2021,C&M-PMS Prem Healthcentre Rent,PRC DELEGATED CO-COMMISSIONING,NHS BARNSLEY CCG GP PRACTICE,38405347,-106.44
Department of Health,NHS Barnsley CCG,31/10/2021,C&M-PMS Voluntary Levy,PRC DELEGATED CO-COMMISSIONING,NHS BARNSLEY CCG GP PRACTICE,38405347,-61.64
Department of Health,NHS Barnsley CCG,31/10/2021,ME-PMS GP Pension EEs-PMS,PRC DELEGATED CO-COMMISSIONING,NHS BARNSLEY CCG GP PRACTICE,38405347,"-11,517.01"
Department of Health,NHS Barnsley CCG,31/10/2021,ME-PMS GP Pension ERs-PMS,PRC DELEGATED CO-COMMISSIONING,NHS BARNSLEY CCG GP PRACTICE,38405347,"-11,695.74"
Department of Health,NHS Barnsley CCG,31/10/2021,C&M-PMS Contract Value,PRC DELEGATED CO-COMMISSIONING,NHS BARNSLEY CCG GP PRACTICE,38424384,"99,611.98"
Department of Health,NHS Barnsley CCG,31/10/2021,C&M-PMS LONG COVID ES,PRC DELEGATED CO-COMMISSIONING,NHS BARNSLEY CCG GP PRACTICE,38424384,"1,729.03"
Department of Health,NHS Barnsley CCG,31/10/2021,C&M-PMS Out of Hours Opt Outs,PRC DELEGATED CO-COMMISSIONING,NHS BARNSLEY CCG GP PRACTICE,38424384,6.31
Department of Health,NHS Barnsley CCG,31/10/2021,C&M-PMS PCN DES Participation,PRC DELEGATED CO-COMMISSIONING,NHS BARNSLEY CCG GP PRACTICE,38424384,"1,813.77"
Department of Health,NHS Barnsley CCG,31/10/2021,C&M-PMS PCO Other,PRC DELEGATED CO-COMMISSIONING,NHS BARNSLEY CCG GP PRACTICE,38424384,"4,538.80"
Department of Health,NHS Barnsley CCG,31/10/2021,C&M-PMS Prem Healthcentre Rent,PRC DELEGATED CO-COMMISSIONING,NHS BARNSLEY CCG GP PRACTICE,38424384,"18,613.68"
Department of Health,NHS Barnsley CCG,31/10/2021,C&M-PMS Prem Notional Rent,PRC DELEGATED CO-COMMISSIONING,NHS BARNSLEY CCG GP PRACTICE,38424384,"2,062.50"
Department of Health,NHS Barnsley CCG,31/10/2021,C&M-PMS Prem Rates,PRC DELEGATED CO-COMMISSIONING,NHS BARNSLEY CCG GP PRACTICE,38424384,283.00
Department of Health,NHS Barnsley CCG,31/10/2021,C&M-PMS Prem Water Rates,PRC DELEGATED CO-COMMISSIONING,NHS BARNSLEY CCG GP PRACTICE,38424384,180.00
Department of Health,NHS Barnsley CCG,31/10/2021,C&M-PMS QOF Aspiration,PRC DELEGATED CO-COMMISSIONING,NHS BARNSLEY CCG GP PRACTICE,38424384,"11,123.30"
Department of Health,NHS Barnsley CCG,31/10/2021,C&M-PMS Contract Value,PRC DELEGATED CO-COMMISSIONING,NHS BARNSLEY CCG GP PRACTICE,38424386,"64,966.88"
Department of Health,NHS Barnsley CCG,31/10/2021,C&M-PMS DES Learn Dsblty Hlth Chk,PRC DELEGATED CO-COMMISSIONING,NHS BARNSLEY CCG GP PRACTICE,38424386,280.00
Department of Health,NHS Barnsley CCG,31/10/2021,C&M-PMS LONG COVID ES,PRC DELEGATED CO-COMMISSIONING,NHS BARNSLEY CCG GP PRACTICE,38424386,"1,245.08"
Department of Health,NHS Barnsley CCG,31/10/2021,C&M-PMS Out of Hours Opt Outs,PRC DELEGATED CO-COMMISSIONING,NHS BARNSLEY CCG GP PRACTICE,38424386,26.03
Department of Health,NHS Barnsley CCG,31/10/2021,C&M-PMS PCN DES Participation,PRC DELEGATED CO-COMMISSIONING,NHS BARNSLEY CCG GP PRACTICE,38424386,"1,160.28"
Department of Health,NHS Barnsley CCG,31/10/2021,C&M-PMS Prem Healthcentre Rent,PRC DELEGATED CO-COMMISSIONING,NHS BARNSLEY CCG GP PRACTICE,38424386,"22,036.84"
Department of Health,NHS Barnsley CCG,31/10/2021,C&M-PMS QOF Aspiration,PRC DELEGATED CO-COMMISSIONING,NHS BARNSLEY CCG GP PRACTICE,38424386,"6,516.93"
Department of Health,NHS Barnsley CCG,31/10/2021,C&M-GMS DES Learn Dsblty Hlth Chk,PRC DELEGATED CO-COMMISSIONING,NHS BARNSLEY CCG GP PRACTICE,38612460,840.00
Department of Health,NHS Barnsley CCG,31/10/2021,C&M-GMS DES Minor Surgery,PRC DELEGATED CO-COMMISSIONING,NHS BARNSLEY CCG GP PRACTICE,38612460,"2,727.68"
Department of Health,NHS Barnsley CCG,31/10/2021,C&M-GMS Global Sum,PRC DELEGATED CO-COMMISSIONING,NHS BARNSLEY CCG GP PRACTICE,38612460,"82,865.40"
Department of Health,NHS Barnsley CCG,31/10/2021,C&M-GMS LONG COVID ES,PRC DELEGATED CO-COMMISSIONING,NHS BARNSLEY CCG GP PRACTICE,38612460,"1,642.13"
Department of Health,NHS Barnsley CCG,31/10/2021,C&M-GMS PCN DES Participation,PRC DELEGATED CO-COMMISSIONING,NHS BARNSLEY CCG GP PRACTICE,38612460,"1,590.67"
Department of Health,NHS Barnsley CCG,31/10/2021,C&M-GMS PCO Other,PRC DELEGATED CO-COMMISSIONING,NHS BARNSLEY CCG GP PRACTICE,38612460,618.50
Department of Health,NHS Barnsley CCG,31/10/2021,C&M-GMS Prem Notional Rent,PRC DELEGATED CO-COMMISSIONING,NHS BARNSLEY CCG GP PRACTICE,38612460,"4,831.25"
Department of Health,NHS Barnsley CCG,31/10/2021,C&M-GMS Prem Rates,PRC DELEGATED CO-COMMISSIONING,NHS BARNSLEY CCG GP PRACTICE,38612460,848.00
Department of Health,NHS Barnsley CCG,31/10/2021,C&M-GMS QOF Aspiration,PRC DELEGATED CO-COMMISSIONING,NHS BARNSLEY CCG GP PRACTICE,38612460,"9,200.75"
Department of Health,NHS Barnsley CCG,31/10/2021,C&M-PMS Contract Value,PRC DELEGATED CO-COMMISSIONING,NHS BARNSLEY CCG GP PRACTICE,38405344,-324.31
Department of Health,NHS Barnsley CCG,31/10/2021,C&M-PMS GP Statutory Levy,PRC DELEGATED CO-COMMISSIONING,NHS BARNSLEY CCG GP PRACTICE,38405344,-57.01
Department of Health,NHS Barnsley CCG,31/10/2021,C&M-PMS Out of Hours Opt Outs,PRC DELEGATED CO-COMMISSIONING,NHS BARNSLEY CCG GP PRACTICE,38405344,"-6,633.67"
Department of Health,NHS Barnsley CCG,31/10/2021,C&M-PMS Voluntary Levy,PRC DELEGATED CO-COMMISSIONING,NHS BARNSLEY CCG GP PRACTICE,38405344,-99.77
Department of Health,NHS Barnsley CCG,31/10/2021,ME - PMS GP Prior Year ERs,PRC DELEGATED CO-COMMISSIONING,NHS BARNSLEY CCG GP PRACTICE,38405344,"-1,198.33"
Department of Health,NHS Barnsley CCG,31/10/2021,ME-PMS GP Pension EEs-PMS,PRC DELEGATED CO-COMMISSIONING,NHS BARNSLEY CCG GP PRACTICE,38405344,"-17,012.46"
Department of Health,NHS Barnsley CCG,31/10/2021,ME-PMS GP Pension ERs-PMS,PRC DELEGATED CO-COMMISSIONING,NHS BARNSLEY CCG GP PRACTICE,38405344,"-18,190.76"
Department of Health,NHS Barnsley CCG,31/10/2021,ME-PMS GP Prior Year EEs,PRC DELEGATED CO-COMMISSIONING,NHS BARNSLEY CCG GP PRACTICE,38405344,"-1,041.67"
Department of Health,NHS Barnsley CCG,31/10/2021,C&M-PMS Contract Value,PRC DELEGATED CO-COMMISSIONING,NHS BARNSLEY CCG GP PRACTICE,38424374,"144,629.67"
Department of Health,NHS Barnsley CCG,31/10/2021,C&M-PMS DES Learn Dsblty Hlth Chk,PRC DELEGATED CO-COMMISSIONING,NHS BARNSLEY CCG GP PRACTICE,38424374,280.00
Department of Health,NHS Barnsley CCG,31/10/2021,C&M-PMS Dispensing Quality Sch,PRC DELEGATED CO-COMMISSIONING,NHS BARNSLEY CCG GP PRACTICE,38424374,"20,247.84"
Department of Health,NHS Barnsley CCG,31/10/2021,C&M-PMS LONG COVID ES,PRC DELEGATED CO-COMMISSIONING,NHS BARNSLEY CCG GP PRACTICE,38424374,"2,822.57"
Department of Health,NHS Barnsley CCG,31/10/2021,C&M-PMS Out of Hours Opt Outs,PRC DELEGATED CO-COMMISSIONING,NHS BARNSLEY CCG GP PRACTICE,38424374,5.88
Department of Health,NHS Barnsley CCG,31/10/2021,C&M-PMS PCN DES Participation,PRC DELEGATED CO-COMMISSIONING,NHS BARNSLEY CCG GP PRACTICE,38424374,"2,631.48"
Department of Health,NHS Barnsley CCG,31/10/2021,C&M-PMS PCO Other,PRC DELEGATED CO-COMMISSIONING,NHS BARNSLEY CCG GP PRACTICE,38424374,"10,268.00"
Department of Health,NHS Barnsley CCG,31/10/2021,C&M-PMS Prem Actual Rent,PRC DELEGATED CO-COMMISSIONING,NHS BARNSLEY CCG GP PRACTICE,38424374,"25,800.00"
Department of Health,NHS Barnsley CCG,31/10/2021,C&M-PMS Prem Notional Rent,PRC DELEGATED CO-COMMISSIONING,NHS BARNSLEY CCG GP PRACTICE,38424374,"6,333.33"
Department of Health,NHS Barnsley CCG,31/10/2021,C&M-PMS Prem Rates,PRC DELEGATED CO-COMMISSIONING,NHS BARNSLEY CCG GP PRACTICE,38424374,"1,737.00"
Department of Health,NHS Barnsley CCG,31/10/2021,C&M-PMS QOF Aspiration,PRC DELEGATED CO-COMMISSIONING,NHS BARNSLEY CCG GP PRACTICE,38424374,"15,747.91"
Department of Health,NHS Barnsley CCG,31/10/2021,C&M-PMS Cost of Drugs -Dispensing,LOCAL ENHANCED SERVICES,NHS BARNSLEY CCG GP PRACTICE,38616049,"92,254.21"
Department of Health,NHS Barnsley CCG,31/10/2021,C&M-PMS Prof fees Dispensing,PRC DELEGATED CO-COMMISSIONING,NHS BARNSLEY CCG GP PRACTICE,38616049,"25,880.88"
Department of Health,NHS Barnsley CCG,31/10/2021,C&M-GMS Global Sum,PRC DELEGATED CO-COMMISSIONING,NHS BARNSLEY CCG GP PRACTICE,38612475,"28,586.71"
Department of Health,NHS Barnsley CCG,31/10/2021,C&M-GMS LONG COVID ES,PRC DELEGATED CO-COMMISSIONING,NHS BARNSLEY CCG GP PRACTICE,38612475,569.69
Department of Health,NHS Barnsley CCG,31/10/2021,C&M-GMS PCN DES Participation,PRC DELEGATED CO-COMMISSIONING,NHS BARNSLEY CCG GP PRACTICE,38612475,534.53
Department of Health,NHS Barnsley CCG,31/10/2021,C&M-GMS PCO Other,PRC DELEGATED CO-COMMISSIONING,NHS BARNSLEY CCG GP PRACTICE,38612475,247.80
Department of Health,NHS Barnsley CCG,31/10/2021,C&M-GMS Prem Healthcentre Rent,PRC DELEGATED CO-COMMISSIONING,NHS BARNSLEY CCG GP PRACTICE,38612475,"3,989.29"
Department of Health,NHS Barnsley CCG,31/10/2021,C&M-GMS QOF Aspiration,PRC DELEGATED CO-COMMISSIONING,NHS BARNSLEY CCG GP PRACTICE,38612475,"2,909.11"
Department of Health,NHS Barnsley CCG,31/10/2021,C&M-GMS Global Sum,PRC DELEGATED CO-COMMISSIONING,NHS BARNSLEY CCG GP PRACTICE,38612472,"47,148.32"
Department of Health,NHS Barnsley CCG,31/10/2021,C&M-GMS LONG COVID ES,PRC DELEGATED CO-COMMISSIONING,NHS BARNSLEY CCG GP PRACTICE,38612472,876.05
Department of Health,NHS Barnsley CCG,31/10/2021,C&M-GMS PCN DES Participation,PRC DELEGATED CO-COMMISSIONING,NHS BARNSLEY CCG GP PRACTICE,38612472,909.92
Department of Health,NHS Barnsley CCG,31/10/2021,C&M-GMS PCO Doctors Ret Scheme,PRC DELEGATED CO-COMMISSIONING,NHS BARNSLEY CCG GP PRACTICE,38612472,666.64
Department of Health,NHS Barnsley CCG,31/10/2021,C&M-GMS PCO Other,PRC DELEGATED CO-COMMISSIONING,NHS BARNSLEY CCG GP PRACTICE,38612472,353.70
Department of Health,NHS Barnsley CCG,31/10/2021,C&M-GMS Prem Actual Rent,PRC DELEGATED CO-COMMISSIONING,NHS BARNSLEY CCG GP PRACTICE,38612472,"6,743.75"
Department of Health,NHS Barnsley CCG,31/10/2021,C&M-GMS Prem Notional Rent,PRC DELEGATED CO-COMMISSIONING,NHS BARNSLEY CCG GP PRACTICE,38612472,"4,920.83"
Department of Health,NHS Barnsley CCG,31/10/2021,C&M-GMS Prem Rates,PRC DELEGATED CO-COMMISSIONING,NHS BARNSLEY CCG GP PRACTICE,38612472,"1,142.00"
Department of Health,NHS Barnsley CCG,31/10/2021,C&M-GMS QOF Aspiration,PRC DELEGATED CO-COMMISSIONING,NHS BARNSLEY CCG GP PRACTICE,38612472,"4,673.20"
Department of Health,NHS Barnsley CCG,31/10/2021,C&M-PMS Contract Value,PRC DELEGATED CO-COMMISSIONING,NHS BARNSLEY CCG GP PRACTICE,38424371,"41,693.11"
Department of Health,NHS Barnsley CCG,31/10/2021,C&M-PMS LONG COVID ES,PRC DELEGATED CO-COMMISSIONING,NHS BARNSLEY CCG GP PRACTICE,38424371,748.92
Department of Health,NHS Barnsley CCG,31/10/2021,C&M-PMS Out of Hours Opt Outs,PRC DELEGATED CO-COMMISSIONING,NHS BARNSLEY CCG GP PRACTICE,38424371,26.00
Department of Health,NHS Barnsley CCG,31/10/2021,C&M-PMS PCN DES Participation,PRC DELEGATED CO-COMMISSIONING,NHS BARNSLEY CCG GP PRACTICE,38424371,759.15
Department of Health,NHS Barnsley CCG,31/10/2021,C&M-PMS Prem Healthcentre Rent,PRC DELEGATED CO-COMMISSIONING,NHS BARNSLEY CCG GP PRACTICE,38424371,"3,823.07"
Department of Health,NHS Barnsley CCG,31/10/2021,C&M-PMS Prem Notional Rent,PRC DELEGATED CO-COMMISSIONING,NHS BARNSLEY CCG GP PRACTICE,38424371,"8,808.34"
Department of Health,NHS Barnsley CCG,31/10/2021,C&M-PMS Prem Rates,PRC DELEGATED CO-COMMISSIONING,NHS BARNSLEY CCG GP PRACTICE,38424371,"1,100.69"
Department of Health,NHS Barnsley CCG,31/10/2021,C&M-PMS Prem Water Rates,PRC DELEGATED CO-COMMISSIONING,NHS BARNSLEY CCG GP PRACTICE,38424371,217.56
Department of Health,NHS Barnsley CCG,31/10/2021,C&M-PMS QOF Aspiration,PRC DELEGATED CO-COMMISSIONING,NHS BARNSLEY CCG GP PRACTICE,38424371,"2,831.30"
Department of Health,NHS Barnsley CCG,31/10/2021,C&M-GMS GP Statutory Levy,PRC DELEGATED CO-COMMISSIONING,NHS BARNSLEY CCG GP PRACTICE,38594014,-44.86
Department of Health,NHS Barnsley CCG,31/10/2021,C&M-GMS Voluntary Levy,PRC DELEGATED CO-COMMISSIONING,NHS BARNSLEY CCG GP PRACTICE,38594014,-78.51
Department of Health,NHS Barnsley CCG,31/10/2021,ME-GMS GP Pension Added Years EEs,PRC DELEGATED CO-COMMISSIONING,NHS BARNSLEY CCG GP PRACTICE,38594014,-681.25
Department of Health,NHS Barnsley CCG,31/10/2021,ME-GMS GP Pension EEs,PRC DELEGATED CO-COMMISSIONING,NHS BARNSLEY CCG GP PRACTICE,38594014,"-13,933.56"
Department of Health,NHS Barnsley CCG,31/10/2021,ME-GMS GP Pension ERs,PRC DELEGATED CO-COMMISSIONING,NHS BARNSLEY CCG GP PRACTICE,38594014,"-14,131.87"
Department of Health,NHS Barnsley CCG,31/10/2021,C&M-GMS DES Learn Dsblty Hlth Chk,PRC DELEGATED CO-COMMISSIONING,NHS BARNSLEY CCG GP PRACTICE,38612468,280.00
Department of Health,NHS Barnsley CCG,31/10/2021,C&M-GMS Global Sum,PRC DELEGATED CO-COMMISSIONING,NHS BARNSLEY CCG GP PRACTICE,38612468,"116,910.36"
Department of Health,NHS Barnsley CCG,31/10/2021,C&M-GMS LONG COVID ES,PRC DELEGATED CO-COMMISSIONING,NHS BARNSLEY CCG GP PRACTICE,38612468,"2,244.31"
Department of Health,NHS Barnsley CCG,31/10/2021,C&M-GMS PCN DES Participation,PRC DELEGATED CO-COMMISSIONING,NHS BARNSLEY CCG GP PRACTICE,38612468,"2,263.26"
Department of Health,NHS Barnsley CCG,31/10/2021,C&M-GMS Prem Notional Rent,PRC DELEGATED CO-COMMISSIONING,NHS BARNSLEY CCG GP PRACTICE,38612468,"7,885.41"
Department of Health,NHS Barnsley CCG,31/10/2021,C&M-GMS QOF Aspiration,PRC DELEGATED CO-COMMISSIONING,NHS BARNSLEY CCG GP PRACTICE,38612468,"12,174.10"
Department of Health,NHS Barnsley CCG,31/10/2021,C&M-GMS Practice Transformational Support,COMMISSIONING SCHEMES,NHS BARNSLEY CCG GP PRACTICE,38427060,"25,038.95"
Department of Health,NHS Barnsley CCG,31/10/2021,C&M-GMS DES Learn Dsblty Hlth Chk,PRC DELEGATED CO-COMMISSIONING,NHS BARNSLEY CCG GP PRACTICE,38612474,420.00
Department of Health,NHS Barnsley CCG,31/10/2021,C&M-GMS DES Minor Surgery,PRC DELEGATED CO-COMMISSIONING,NHS BARNSLEY CCG GP PRACTICE,38612474,"4,304.62"
Department of Health,NHS Barnsley CCG,31/10/2021,C&M-GMS Global Sum,PRC DELEGATED CO-COMMISSIONING,NHS BARNSLEY CCG GP PRACTICE,38612474,"104,164.90"
Department of Health,NHS Barnsley CCG,31/10/2021,C&M-GMS LONG COVID ES,PRC DELEGATED CO-COMMISSIONING,NHS BARNSLEY CCG GP PRACTICE,38612474,"1,965.15"
Department of Health,NHS Barnsley CCG,31/10/2021,C&M-GMS PCN DES Participation,PRC DELEGATED CO-COMMISSIONING,NHS BARNSLEY CCG GP PRACTICE,38612474,"2,013.15"
Department of Health,NHS Barnsley CCG,31/10/2021,C&M-GMS Prem Notional Rent,PRC DELEGATED CO-COMMISSIONING,NHS BARNSLEY CCG GP PRACTICE,38612474,"13,593.75"
Department of Health,NHS Barnsley CCG,31/10/2021,C&M-GMS Prem Rates,PRC DELEGATED CO-COMMISSIONING,NHS BARNSLEY CCG GP PRACTICE,38612474,"3,122.00"
Department of Health,NHS Barnsley CCG,31/10/2021,C&M-GMS Prem Water Rates,PRC DELEGATED CO-COMMISSIONING,NHS BARNSLEY CCG GP PRACTICE,38612474,224.72
Department of Health,NHS Barnsley CCG,31/10/2021,C&M-GMS QOF Aspiration,PRC DELEGATED CO-COMMISSIONING,NHS BARNSLEY CCG GP PRACTICE,38612474,"11,182.52"
Department of Health,NHS Barnsley CCG,31/10/2021,ME-GMS GP Pension EEs,PRC DELEGATED CO-COMMISSIONING,NHS BARNSLEY CCG GP PRACTICE,38612474,"7,908.54"
Department of Health,NHS Barnsley CCG,31/10/2021,ME-GMS GP Pension ERs,PRC DELEGATED CO-COMMISSIONING,NHS BARNSLEY CCG GP PRACTICE,38612474,"7,843.09"
Department of Health,NHS Barnsley CCG,31/10/2021,C&M-GMS Global Sum,PRC DELEGATED CO-COMMISSIONING,NHS BARNSLEY CCG GP PRACTICE,38612458,"90,281.59"
Department of Health,NHS Barnsley CCG,31/10/2021,C&M-GMS LONG COVID ES,PRC DELEGATED CO-COMMISSIONING,NHS BARNSLEY CCG GP PRACTICE,38612458,"1,735.29"
Department of Health,NHS Barnsley CCG,31/10/2021,C&M-GMS PCN DES Participation,PRC DELEGATED CO-COMMISSIONING,NHS BARNSLEY CCG GP PRACTICE,38612458,"1,700.34"
Department of Health,NHS Barnsley CCG,31/10/2021,C&M-GMS PCO Other,PRC DELEGATED CO-COMMISSIONING,NHS BARNSLEY CCG GP PRACTICE,38612458,650.40
Department of Health,NHS Barnsley CCG,31/10/2021,C&M-GMS Prem Notional Rent,PRC DELEGATED CO-COMMISSIONING,NHS BARNSLEY CCG GP PRACTICE,38612458,"42,150.00"
Department of Health,NHS Barnsley CCG,31/10/2021,C&M-GMS Prem Rates,PRC DELEGATED CO-COMMISSIONING,NHS BARNSLEY CCG GP PRACTICE,38612458,"2,867.00"
Department of Health,NHS Barnsley CCG,31/10/2021,C&M-GMS QOF Aspiration,PRC DELEGATED CO-COMMISSIONING,NHS BARNSLEY CCG GP PRACTICE,38612458,"10,813.91"
Department of Health,NHS Barnsley CCG,31/10/2021,C&M-PMS Contract Value,PRC DELEGATED CO-COMMISSIONING,NHS BARNSLEY CCG GP PRACTICE,38405338,-105.05
Department of Health,NHS Barnsley CCG,31/10/2021,C&M-PMS GP Statutory Levy,PRC DELEGATED CO-COMMISSIONING,NHS BARNSLEY CCG GP PRACTICE,38405338,-57.19
Department of Health,NHS Barnsley CCG,31/10/2021,C&M-PMS Out of Hours Opt Outs,PRC DELEGATED CO-COMMISSIONING,NHS BARNSLEY CCG GP PRACTICE,38405338,"-7,234.49"
Department of Health,NHS Barnsley CCG,31/10/2021,C&M-PMS Voluntary Levy,PRC DELEGATED CO-COMMISSIONING,NHS BARNSLEY CCG GP PRACTICE,38405338,-100.08
Department of Health,NHS Barnsley CCG,31/10/2021,ME - PMS GP Prior Year ERs,PRC DELEGATED CO-COMMISSIONING,NHS BARNSLEY CCG GP PRACTICE,38405338,"-23,499.95"
Department of Health,NHS Barnsley CCG,31/10/2021,ME-PMS GP Pension Added Years EEs,PRC DELEGATED CO-COMMISSIONING,NHS BARNSLEY CCG GP PRACTICE,38405338,-393.33
Department of Health,NHS Barnsley CCG,31/10/2021,ME-PMS GP Pension EEs-PMS,PRC DELEGATED CO-COMMISSIONING,NHS BARNSLEY CCG GP PRACTICE,38405338,"-13,738.34"
Department of Health,NHS Barnsley CCG,31/10/2021,ME-PMS GP Pension ERs-PMS,PRC DELEGATED CO-COMMISSIONING,NHS BARNSLEY CCG GP PRACTICE,38405338,"-14,461.18"
Department of Health,NHS Barnsley CCG,31/10/2021,ME-PMS GP Prior Year EEs,PRC DELEGATED CO-COMMISSIONING,NHS BARNSLEY CCG GP PRACTICE,38405338,"-22,061.86"
Department of Health,NHS Barnsley CCG,31/10/2021,C&M-PMS Contract Value,PRC DELEGATED CO-COMMISSIONING,NHS BARNSLEY CCG GP PRACTICE,38424358,"157,122.97"
Department of Health,NHS Barnsley CCG,31/10/2021,C&M-PMS DES Learn Dsblty Hlth Chk,PRC DELEGATED CO-COMMISSIONING,NHS BARNSLEY CCG GP PRACTICE,38424358,280.00
Department of Health,NHS Barnsley CCG,31/10/2021,C&M-PMS LONG COVID ES,PRC DELEGATED CO-COMMISSIONING,NHS BARNSLEY CCG GP PRACTICE,38424358,"2,822.08"
Department of Health,NHS Barnsley CCG,31/10/2021,C&M-PMS Out of Hours Opt Outs,PRC DELEGATED CO-COMMISSIONING,NHS BARNSLEY CCG GP PRACTICE,38424358,4.84
Department of Health,NHS Barnsley CCG,31/10/2021,C&M-PMS PCN DES Participation,PRC DELEGATED CO-COMMISSIONING,NHS BARNSLEY CCG GP PRACTICE,38424358,"2,848.86"
Department of Health,NHS Barnsley CCG,31/10/2021,C&M-PMS Prem Notional Rent,PRC DELEGATED CO-COMMISSIONING,NHS BARNSLEY CCG GP PRACTICE,38424358,"11,879.17"
Department of Health,NHS Barnsley CCG,31/10/2021,C&M-PMS QOF Aspiration,PRC DELEGATED CO-COMMISSIONING,NHS BARNSLEY CCG GP PRACTICE,38424358,"16,587.37"
Department of Health,NHS Barnsley CCG,31/10/2021,C&M-GMS LES Medicine Management,COMMISSIONING SCHEMES,NHS BARNSLEY CCG GP PRACTICE,38426803,"29,070.03"
Department of Health,NHS Barnsley CCG,31/10/2021,C&M-GMS Practice Transformational Support,COMMISSIONING SCHEMES,NHS BARNSLEY CCG GP PRACTICE,38427025,"35,433.23"
Department of Health,NHS Barnsley CCG,31/10/2021,C&M-PMS Contract Value,PRC DELEGATED CO-COMMISSIONING,NHS BARNSLEY CCG GP PRACTICE,38405346,-214.03
Department of Health,NHS Barnsley CCG,31/10/2021,C&M-PMS GP Statutory Levy,PRC DELEGATED CO-COMMISSIONING,NHS BARNSLEY CCG GP PRACTICE,38405346,-41.38
Department of Health,NHS Barnsley CCG,31/10/2021,C&M-PMS Out of Hours Opt Outs,PRC DELEGATED CO-COMMISSIONING,NHS BARNSLEY CCG GP PRACTICE,38405346,"-5,199.01"
Department of Health,NHS Barnsley CCG,31/10/2021,C&M-PMS Voluntary Levy,PRC DELEGATED CO-COMMISSIONING,NHS BARNSLEY CCG GP PRACTICE,38405346,-72.42
Department of Health,NHS Barnsley CCG,31/10/2021,ME-PMS GP Pension EEs Adjs - PMS,PRC DELEGATED CO-COMMISSIONING,NHS BARNSLEY CCG GP PRACTICE,38405346,"-7,418.34"
Department of Health,NHS Barnsley CCG,31/10/2021,ME-PMS GP Pension EEs-PMS,PRC DELEGATED CO-COMMISSIONING,NHS BARNSLEY CCG GP PRACTICE,38405346,"-9,717.00"
Department of Health,NHS Barnsley CCG,31/10/2021,ME-PMS GP Pension ERs Adjs - PMS,PRC DELEGATED CO-COMMISSIONING,NHS BARNSLEY CCG GP PRACTICE,38405346,"-7,477.60"
Department of Health,NHS Barnsley CCG,31/10/2021,ME-PMS GP Pension ERs-PMS,PRC DELEGATED CO-COMMISSIONING,NHS BARNSLEY CCG GP PRACTICE,38405346,"-10,137.91"
Department of Health,NHS Barnsley CCG,31/10/2021,C&M-PMS Contract Value,PRC DELEGATED CO-COMMISSIONING,NHS BARNSLEY CCG GP PRACTICE,38424381,"114,220.92"
Department of Health,NHS Barnsley CCG,31/10/2021,C&M-PMS DES Learn Dsblty Hlth Chk,PRC DELEGATED CO-COMMISSIONING,NHS BARNSLEY CCG GP PRACTICE,38424381,"1,120.00"
Department of Health,NHS Barnsley CCG,31/10/2021,C&M-PMS LONG COVID ES,PRC DELEGATED CO-COMMISSIONING,NHS BARNSLEY CCG GP PRACTICE,38424381,"2,017.25"
Department of Health,NHS Barnsley CCG,31/10/2021,C&M-PMS Out of Hours Opt Outs,PRC DELEGATED CO-COMMISSIONING,NHS BARNSLEY CCG GP PRACTICE,38424381,36.37
Department of Health,NHS Barnsley CCG,31/10/2021,C&M-PMS PCN DES Participation,PRC DELEGATED CO-COMMISSIONING,NHS BARNSLEY CCG GP PRACTICE,38424381,"2,065.71"
Department of Health,NHS Barnsley CCG,31/10/2021,C&M-PMS PCO Other,PRC DELEGATED CO-COMMISSIONING,NHS BARNSLEY CCG GP PRACTICE,38424381,748.00
Department of Health,NHS Barnsley CCG,31/10/2021,C&M-PMS Prem Actual Rent,PRC DELEGATED CO-COMMISSIONING,NHS BARNSLEY CCG GP PRACTICE,38424381,"13,654.17"
Department of Health,NHS Barnsley CCG,31/10/2021,C&M-PMS Prem Rates,PRC DELEGATED CO-COMMISSIONING,NHS BARNSLEY CCG GP PRACTICE,38424381,"2,560.00"
Department of Health,NHS Barnsley CCG,31/10/2021,C&M-PMS QOF Aspiration,PRC DELEGATED CO-COMMISSIONING,NHS BARNSLEY CCG GP PRACTICE,38424381,"11,658.46"
Department of Health,NHS Barnsley CCG,31/10/2021,C&M-PMS Contract Value,PRC DELEGATED CO-COMMISSIONING,NHS BARNSLEY CCG GP PRACTICE,38424390,"99,901.50"
Department of Health,NHS Barnsley CCG,31/10/2021,C&M-PMS DES Learn Dsblty Hlth Chk,PRC DELEGATED CO-COMMISSIONING,NHS BARNSLEY CCG GP PRACTICE,38424390,140.00
Department of Health,NHS Barnsley CCG,31/10/2021,C&M-PMS LONG COVID ES,PRC DELEGATED CO-COMMISSIONING,NHS BARNSLEY CCG GP PRACTICE,38424390,"1,943.71"
Department of Health,NHS Barnsley CCG,31/10/2021,C&M-PMS Out of Hours Opt Outs,PRC DELEGATED CO-COMMISSIONING,NHS BARNSLEY CCG GP PRACTICE,38424390,8.38
Department of Health,NHS Barnsley CCG,31/10/2021,C&M-PMS PCN DES Participation,PRC DELEGATED CO-COMMISSIONING,NHS BARNSLEY CCG GP PRACTICE,38424390,"1,817.09"
Department of Health,NHS Barnsley CCG,31/10/2021,C&M-PMS PCO Other,PRC DELEGATED CO-COMMISSIONING,NHS BARNSLEY CCG GP PRACTICE,38424390,"12,270.30"
Department of Health,NHS Barnsley CCG,31/10/2021,C&M-PMS Prem Actual Rent,PRC DELEGATED CO-COMMISSIONING,NHS BARNSLEY CCG GP PRACTICE,38424390,"8,566.67"
Department of Health,NHS Barnsley CCG,31/10/2021,C&M-PMS Prem Rates,PRC DELEGATED CO-COMMISSIONING,NHS BARNSLEY CCG GP PRACTICE,38424390,"15,469.00"
Department of Health,NHS Barnsley CCG,31/10/2021,C&M-PMS Prem Water Rates,PRC DELEGATED CO-COMMISSIONING,NHS BARNSLEY CCG GP PRACTICE,38424390,"1,233.61"
Department of Health,NHS Barnsley CCG,31/10/2021,C&M-PMS QOF Aspiration,PRC DELEGATED CO-COMMISSIONING,NHS BARNSLEY CCG GP PRACTICE,38424390,"8,766.62"
Department of Health,NHS Barnsley CCG,31/10/2021,C&M-GMS Global Sum,PRC DELEGATED CO-COMMISSIONING,NHS BARNSLEY CCG GP PRACTICE,38612465,"67,126.80"
Department of Health,NHS Barnsley CCG,31/10/2021,C&M-GMS LONG COVID ES,PRC DELEGATED CO-COMMISSIONING,NHS BARNSLEY CCG GP PRACTICE,38612465,"1,165.60"
Department of Health,NHS Barnsley CCG,31/10/2021,C&M-GMS PCN DES Participation,PRC DELEGATED CO-COMMISSIONING,NHS BARNSLEY CCG GP PRACTICE,38612465,"1,280.13"
Department of Health,NHS Barnsley CCG,31/10/2021,C&M-GMS Prem Healthcentre Rent,PRC DELEGATED CO-COMMISSIONING,NHS BARNSLEY CCG GP PRACTICE,38612465,"58,993.33"
Department of Health,NHS Barnsley CCG,31/10/2021,C&M-GMS QOF Aspiration,PRC DELEGATED CO-COMMISSIONING,NHS BARNSLEY CCG GP PRACTICE,38612465,"7,148.16"
Department of Health,NHS Barnsley CCG,31/10/2021,ME-GMS GP Pension EEs Adjustments,PRC DELEGATED CO-COMMISSIONING,NHS BARNSLEY CCG GP PRACTICE,38612465,"6,041.65"
Department of Health,NHS Barnsley CCG,31/10/2021,ME-GMS GP Pension ERs Adjustments,PRC DELEGATED CO-COMMISSIONING,NHS BARNSLEY CCG GP PRACTICE,38612465,"5,991.65"
Department of Health,NHS Barnsley CCG,31/10/2021,C&M-PMS Contract Value,PRC DELEGATED CO-COMMISSIONING,NHS BARNSLEY CCG GP PRACTICE,38424359,"113,672.56"
Department of Health,NHS Barnsley CCG,31/10/2021,C&M-PMS DES Learn Dsblty Hlth Chk,PRC DELEGATED CO-COMMISSIONING,NHS BARNSLEY CCG GP PRACTICE,38424359,140.00
Department of Health,NHS Barnsley CCG,31/10/2021,C&M-PMS LONG COVID ES,PRC DELEGATED CO-COMMISSIONING,NHS BARNSLEY CCG GP PRACTICE,38424359,"2,141.41"
Department of Health,NHS Barnsley CCG,31/10/2021,C&M-PMS Out of Hours Opt Outs,PRC DELEGATED CO-COMMISSIONING,NHS BARNSLEY CCG GP PRACTICE,38424359,1.63
Department of Health,NHS Barnsley CCG,31/10/2021,C&M-PMS PCN DES Participation,PRC DELEGATED CO-COMMISSIONING,NHS BARNSLEY CCG GP PRACTICE,38424359,"2,069.92"
Department of Health,NHS Barnsley CCG,31/10/2021,C&M-PMS Prem Actual Rent,PRC DELEGATED CO-COMMISSIONING,NHS BARNSLEY CCG GP PRACTICE,38424359,"55,281.25"
Department of Health,NHS Barnsley CCG,31/10/2021,C&M-PMS Prem Rates,PRC DELEGATED CO-COMMISSIONING,NHS BARNSLEY CCG GP PRACTICE,38424359,"2,739.00"
Department of Health,NHS Barnsley CCG,31/10/2021,C&M-PMS QOF Aspiration,PRC DELEGATED CO-COMMISSIONING,NHS BARNSLEY CCG GP PRACTICE,38424359,"12,568.94"
Department of Health,NHS Barnsley CCG,31/10/2021,C&M-GMS Practice Transformational Support,COMMISSIONING SCHEMES,NHS BARNSLEY CCG GP PRACTICE,38427014,"25,745.03"
Department of Health,NHS Barnsley CCG,31/10/2021,C&M-GMS DES Learn Dsblty Hlth Chk,PRC DELEGATED CO-COMMISSIONING,NHS BARNSLEY CCG GP PRACTICE,38612461,140.00
Department of Health,NHS Barnsley CCG,31/10/2021,C&M-GMS Global Sum,PRC DELEGATED CO-COMMISSIONING,NHS BARNSLEY CCG GP PRACTICE,38612461,"55,958.91"
Department of Health,NHS Barnsley CCG,31/10/2021,C&M-GMS LONG COVID ES,PRC DELEGATED CO-COMMISSIONING,NHS BARNSLEY CCG GP PRACTICE,38612461,"1,033.20"
Department of Health,NHS Barnsley CCG,31/10/2021,C&M-GMS PCN DES Participation,PRC DELEGATED CO-COMMISSIONING,NHS BARNSLEY CCG GP PRACTICE,38612461,"1,062.59"
Department of Health,NHS Barnsley CCG,31/10/2021,C&M-GMS Prem Notional Rent,PRC DELEGATED CO-COMMISSIONING,NHS BARNSLEY CCG GP PRACTICE,38612461,"2,750.00"
Department of Health,NHS Barnsley CCG,31/10/2021,C&M-GMS Prem Rates,PRC DELEGATED CO-COMMISSIONING,NHS BARNSLEY CCG GP PRACTICE,38612461,416.00
Department of Health,NHS Barnsley CCG,31/10/2021,C&M-GMS QOF Aspiration,PRC DELEGATED CO-COMMISSIONING,NHS BARNSLEY CCG GP PRACTICE,38612461,"4,993.02"
Department of Health,NHS Barnsley CCG,31/10/2021,C&M-PMS Contract Value,PRC DELEGATED CO-COMMISSIONING,NHS BARNSLEY CCG GP PRACTICE,38424377,"43,976.83"
Department of Health,NHS Barnsley CCG,31/10/2021,C&M-PMS LONG COVID ES,PRC DELEGATED CO-COMMISSIONING,NHS BARNSLEY CCG GP PRACTICE,38424377,832.03
Department of Health,NHS Barnsley CCG,31/10/2021,C&M-PMS Out of Hours Opt Outs,PRC DELEGATED CO-COMMISSIONING,NHS BARNSLEY CCG GP PRACTICE,38424377,13.71
Department of Health,NHS Barnsley CCG,31/10/2021,C&M-PMS PCN DES Participation,PRC DELEGATED CO-COMMISSIONING,NHS BARNSLEY CCG GP PRACTICE,38424377,792.40
Department of Health,NHS Barnsley CCG,31/10/2021,C&M-PMS PCO Other,PRC DELEGATED CO-COMMISSIONING,NHS BARNSLEY CCG GP PRACTICE,38424377,338.60
Department of Health,NHS Barnsley CCG,31/10/2021,C&M-PMS Prem Actual Rent,PRC DELEGATED CO-COMMISSIONING,NHS BARNSLEY CCG GP PRACTICE,38424377,"24,437.50"
Department of Health,NHS Barnsley CCG,31/10/2021,C&M-PMS Prem Rates,PRC DELEGATED CO-COMMISSIONING,NHS BARNSLEY CCG GP PRACTICE,38424377,"1,996.00"
Department of Health,NHS Barnsley CCG,31/10/2021,C&M-PMS QOF Aspiration,PRC DELEGATED CO-COMMISSIONING,NHS BARNSLEY CCG GP PRACTICE,38424377,"3,884.34"
Department of Health,NHS Barnsley CCG,31/10/2021,C&M-GMS Practice Transformational Support,COMMISSIONING SCHEMES,NHS BARNSLEY CCG GP PRACTICE,38427106,"25,323.42"
Department of Health,NHS Barnsley CCG,31/10/2021,C&M-GMS DES Learn Dsblty Hlth Chk,PRC DELEGATED CO-COMMISSIONING,NHS BARNSLEY CCG GP PRACTICE,38612463,700.00
Department of Health,NHS Barnsley CCG,31/10/2021,C&M-GMS DES Minor Surgery,PRC DELEGATED CO-COMMISSIONING,NHS BARNSLEY CCG GP PRACTICE,38612463,"2,301.48"
Department of Health,NHS Barnsley CCG,31/10/2021,C&M-GMS Global Sum,PRC DELEGATED CO-COMMISSIONING,NHS BARNSLEY CCG GP PRACTICE,38612463,"106,952.10"
Department of Health,NHS Barnsley CCG,31/10/2021,C&M-GMS LONG COVID ES,PRC DELEGATED CO-COMMISSIONING,NHS BARNSLEY CCG GP PRACTICE,38612463,"1,823.67"
Department of Health,NHS Barnsley CCG,31/10/2021,C&M-GMS PCN DES Participation,PRC DELEGATED CO-COMMISSIONING,NHS BARNSLEY CCG GP PRACTICE,38612463,"2,036.03"
Department of Health,NHS Barnsley CCG,31/10/2021,C&M-GMS Prem Healthcentre Rent,PRC DELEGATED CO-COMMISSIONING,NHS BARNSLEY CCG GP PRACTICE,38612463,"95,950.04"
Department of Health,NHS Barnsley CCG,31/10/2021,C&M-GMS QOF Aspiration,PRC DELEGATED CO-COMMISSIONING,NHS BARNSLEY CCG GP PRACTICE,38612463,"10,599.42"
Department of Health,NHS Barnsley CCG,31/10/2021,C&M-GMS DES Learn Dsblty Hlth Chk,PRC DELEGATED CO-COMMISSIONING,NHS BARNSLEY CCG GP PRACTICE,38612466,140.00
Department of Health,NHS Barnsley CCG,31/10/2021,C&M-GMS DES Minor Surgery,PRC DELEGATED CO-COMMISSIONING,NHS BARNSLEY CCG GP PRACTICE,38612466,"4,730.82"
Department of Health,NHS Barnsley CCG,31/10/2021,C&M-GMS Global Sum,PRC DELEGATED CO-COMMISSIONING,NHS BARNSLEY CCG GP PRACTICE,38612466,"100,098.68"
Department of Health,NHS Barnsley CCG,31/10/2021,C&M-GMS LONG COVID ES,PRC DELEGATED CO-COMMISSIONING,NHS BARNSLEY CCG GP PRACTICE,38612466,"2,025.00"
Department of Health,NHS Barnsley CCG,31/10/2021,C&M-GMS PCN DES Participation,PRC DELEGATED CO-COMMISSIONING,NHS BARNSLEY CCG GP PRACTICE,38612466,"1,902.18"
Department of Health,NHS Barnsley CCG,31/10/2021,C&M-GMS Prem Healthcentre Rent,PRC DELEGATED CO-COMMISSIONING,NHS BARNSLEY CCG GP PRACTICE,38612466,"54,239.47"
Department of Health,NHS Barnsley CCG,31/10/2021,C&M-GMS Prem Notional Rent,PRC DELEGATED CO-COMMISSIONING,NHS BARNSLEY CCG GP PRACTICE,38612466,"1,497.92"
Department of Health,NHS Barnsley CCG,31/10/2021,C&M-GMS Prem Water Rates,PRC DELEGATED CO-COMMISSIONING,NHS BARNSLEY CCG GP PRACTICE,38612466,51.67
Department of Health,NHS Barnsley CCG,31/10/2021,C&M-GMS QOF Aspiration,PRC DELEGATED CO-COMMISSIONING,NHS BARNSLEY CCG GP PRACTICE,38612466,"11,510.18"
Department of Health,NHS Barnsley CCG,31/10/2021,C&M-PMS Contract Value,PRC DELEGATED CO-COMMISSIONING,NHS BARNSLEY CCG GP PRACTICE,38405349,"53,208.04"
Department of Health,NHS Barnsley CCG,31/10/2021,C&M-PMS DES Learn Dsblty Hlth Chk,PRC DELEGATED CO-COMMISSIONING,NHS BARNSLEY CCG GP PRACTICE,38405349,560.00
Department of Health,NHS Barnsley CCG,31/10/2021,C&M-PMS Out of Hours Opt Outs,PRC DELEGATED CO-COMMISSIONING,NHS BARNSLEY CCG GP PRACTICE,38405349,6.77
Department of Health,NHS Barnsley CCG,31/10/2021,C&M-PMS PCN DES Participation,PRC DELEGATED CO-COMMISSIONING,NHS BARNSLEY CCG GP PRACTICE,38405349,961.24
Department of Health,NHS Barnsley CCG,31/10/2021,C&M-PMS Prem Healthcentre Rent,PRC DELEGATED CO-COMMISSIONING,NHS BARNSLEY CCG GP PRACTICE,38405349,"6,104.82"
Department of Health,NHS Barnsley CCG,31/10/2021,C&M-PMS Prem Notional Rent,PRC DELEGATED CO-COMMISSIONING,NHS BARNSLEY CCG GP PRACTICE,38405349,"3,666.67"
Department of Health,NHS Barnsley CCG,31/10/2021,C&M-PMS Prem Rates,PRC DELEGATED CO-COMMISSIONING,NHS BARNSLEY CCG GP PRACTICE,38405349,520.00
Department of Health,NHS Barnsley CCG,31/10/2021,C&M-PMS QOF Aspiration,PRC DELEGATED CO-COMMISSIONING,NHS BARNSLEY CCG GP PRACTICE,38405349,"5,627.68"
Department of Health,NHS Barnsley CCG,31/10/2021,C&M-PMS Contract Value,PRC DELEGATED CO-COMMISSIONING,NHS BARNSLEY CCG GP PRACTICE,38424363,"33,124.40"
Department of Health,NHS Barnsley CCG,31/10/2021,C&M-PMS LONG COVID ES,PRC DELEGATED CO-COMMISSIONING,NHS BARNSLEY CCG GP PRACTICE,38424363,695.33
Department of Health,NHS Barnsley CCG,31/10/2021,C&M-PMS Out of Hours Opt Outs,PRC DELEGATED CO-COMMISSIONING,NHS BARNSLEY CCG GP PRACTICE,38424363,26.17
Department of Health,NHS Barnsley CCG,31/10/2021,C&M-PMS PCN DES Participation,PRC DELEGATED CO-COMMISSIONING,NHS BARNSLEY CCG GP PRACTICE,38424363,592.95
Department of Health,NHS Barnsley CCG,31/10/2021,C&M-PMS PCO Other,PRC DELEGATED CO-COMMISSIONING,NHS BARNSLEY CCG GP PRACTICE,38424363,"2,914.00"
Department of Health,NHS Barnsley CCG,31/10/2021,C&M-PMS Prem Notional Rent,PRC DELEGATED CO-COMMISSIONING,NHS BARNSLEY CCG GP PRACTICE,38424363,"4,333.33"
Department of Health,NHS Barnsley CCG,31/10/2021,C&M-PMS Prem Rates,PRC DELEGATED CO-COMMISSIONING,NHS BARNSLEY CCG GP PRACTICE,38424363,"1,447.00"
Department of Health,NHS Barnsley CCG,31/10/2021,C&M-PMS QOF Aspiration,PRC DELEGATED CO-COMMISSIONING,NHS BARNSLEY CCG GP PRACTICE,38424363,"2,920.89"
Department of Health,NHS Barnsley CCG,31/10/2021,C&M-APMS Contract Value,PRC DELEGATED CO-COMMISSIONING,NHS BARNSLEY CCG GP PRACTICE,38424365,"20,276.19"
Department of Health,NHS Barnsley CCG,31/10/2021,C&M-APMS LONG COVID ES,PRC DELEGATED CO-COMMISSIONING,NHS BARNSLEY CCG GP PRACTICE,38424365,393.43
Department of Health,NHS Barnsley CCG,31/10/2021,C&M-APMS OOH Opt Outs,PRC DELEGATED CO-COMMISSIONING,NHS BARNSLEY CCG GP PRACTICE,38424365,5.68
Department of Health,NHS Barnsley CCG,31/10/2021,C&M-APMS PCN DES Participation,PRC DELEGATED CO-COMMISSIONING,NHS BARNSLEY CCG GP PRACTICE,38424365,371.84
Department of Health,NHS Barnsley CCG,31/10/2021,C&M-APMS Prem Healthcentre Rent,PRC DELEGATED CO-COMMISSIONING,NHS BARNSLEY CCG GP PRACTICE,38424365,"5,111.96"
Department of Health,NHS Barnsley CCG,31/10/2021,C&M-APMS QOF Aspiration,PRC DELEGATED CO-COMMISSIONING,NHS BARNSLEY CCG GP PRACTICE,38424365,"1,630.65"
Department of Health,NHS Barnsley CCG,31/10/2021,C&M-GMS LES Medicine Management,COMMISSIONING SCHEMES,NHS BARNSLEY CCG GP PRACTICE,38426737,"26,851.88"
Department of Health,NHS Barnsley CCG,31/10/2021,C&M-GMS Practice Transformational Support,COMMISSIONING SCHEMES,NHS BARNSLEY CCG GP PRACTICE,38426986,"32,729.54"
Department of Health,NHS Barnsley CCG,31/10/2021,C&M-GMS DES Learn Dsblty Hlth Chk,PRC DELEGATED CO-COMMISSIONING,NHS BARNSLEY CCG GP PRACTICE,38612469,140.00
Department of Health,NHS Barnsley CCG,31/10/2021,C&M-GMS Global Sum,PRC DELEGATED CO-COMMISSIONING,NHS BARNSLEY CCG GP PRACTICE,38612469,"68,017.24"
Department of Health,NHS Barnsley CCG,31/10/2021,C&M-GMS LONG COVID ES,PRC DELEGATED CO-COMMISSIONING,NHS BARNSLEY CCG GP PRACTICE,38612469,"1,301.96"
Department of Health,NHS Barnsley CCG,31/10/2021,C&M-GMS PCN DES Participation,PRC DELEGATED CO-COMMISSIONING,NHS BARNSLEY CCG GP PRACTICE,38612469,"1,286.44"
Department of Health,NHS Barnsley CCG,31/10/2021,C&M-GMS Prem Notional Rent,PRC DELEGATED CO-COMMISSIONING,NHS BARNSLEY CCG GP PRACTICE,38612469,"9,345.31"
Department of Health,NHS Barnsley CCG,31/10/2021,C&M-GMS Prem Rates,PRC DELEGATED CO-COMMISSIONING,NHS BARNSLEY CCG GP PRACTICE,38612469,"1,144.00"
Department of Health,NHS Barnsley CCG,31/10/2021,C&M-GMS QOF Aspiration,PRC DELEGATED CO-COMMISSIONING,NHS BARNSLEY CCG GP PRACTICE,38612469,"8,007.59"
Department of Health,NHS Barnsley CCG,31/10/2021,C&M-PMS Contract Value,PRC DELEGATED CO-COMMISSIONING,NHS BARNSLEY CCG GP PRACTICE,38424388,"87,761.46"
Department of Health,NHS Barnsley CCG,31/10/2021,C&M-PMS DES Learn Dsblty Hlth Chk,PRC DELEGATED CO-COMMISSIONING,NHS BARNSLEY CCG GP PRACTICE,38424388,280.00
Department of Health,NHS Barnsley CCG,31/10/2021,C&M-PMS LONG COVID ES,PRC DELEGATED CO-COMMISSIONING,NHS BARNSLEY CCG GP PRACTICE,38424388,"1,497.85"
Department of Health,NHS Barnsley CCG,31/10/2021,C&M-PMS Out of Hours Opt Outs,PRC DELEGATED CO-COMMISSIONING,NHS BARNSLEY CCG GP PRACTICE,38424388,49.66
Department of Health,NHS Barnsley CCG,31/10/2021,C&M-PMS PCN DES Participation,PRC DELEGATED CO-COMMISSIONING,NHS BARNSLEY CCG GP PRACTICE,38424388,"1,566.94"
Department of Health,NHS Barnsley CCG,31/10/2021,C&M-PMS Prem Actual Rent,PRC DELEGATED CO-COMMISSIONING,NHS BARNSLEY CCG GP PRACTICE,38424388,319.38
Department of Health,NHS Barnsley CCG,31/10/2021,C&M-PMS Prem Healthcentre Rent,PRC DELEGATED CO-COMMISSIONING,NHS BARNSLEY CCG GP PRACTICE,38424388,"22,813.77"
Department of Health,NHS Barnsley CCG,31/10/2021,C&M-PMS QOF Aspiration,PRC DELEGATED CO-COMMISSIONING,NHS BARNSLEY CCG GP PRACTICE,38424388,"8,319.19"
Department of Health,NHS Barnsley CCG,31/10/2021,C&M-PMS Contract Value,PRC DELEGATED CO-COMMISSIONING,NHS BARNSLEY CCG GP PRACTICE,38424352,"48,439.94"
Department of Health,NHS Barnsley CCG,31/10/2021,C&M-PMS DES Learn Dsblty Hlth Chk,PRC DELEGATED CO-COMMISSIONING,NHS BARNSLEY CCG GP PRACTICE,38424352,"1,960.00"
Department of Health,NHS Barnsley CCG,31/10/2021,C&M-PMS LONG COVID ES,PRC DELEGATED CO-COMMISSIONING,NHS BARNSLEY CCG GP PRACTICE,38424352,829.56
Department of Health,NHS Barnsley CCG,31/10/2021,C&M-PMS Out of Hours Opt Outs,PRC DELEGATED CO-COMMISSIONING,NHS BARNSLEY CCG GP PRACTICE,38424352,9.35
Department of Health,NHS Barnsley CCG,31/10/2021,C&M-PMS PCN DES Participation,PRC DELEGATED CO-COMMISSIONING,NHS BARNSLEY CCG GP PRACTICE,38424352,874.36
Department of Health,NHS Barnsley CCG,31/10/2021,C&M-PMS PCO Other,PRC DELEGATED CO-COMMISSIONING,NHS BARNSLEY CCG GP PRACTICE,38424352,337.60
Department of Health,NHS Barnsley CCG,31/10/2021,C&M-PMS Prem Actual Rent,PRC DELEGATED CO-COMMISSIONING,NHS BARNSLEY CCG GP PRACTICE,38424352,"28,500.00"
Department of Health,NHS Barnsley CCG,31/10/2021,C&M-PMS Prem Rates,PRC DELEGATED CO-COMMISSIONING,NHS BARNSLEY CCG GP PRACTICE,38424352,"1,237.00"
Department of Health,NHS Barnsley CCG,31/10/2021,C&M-PMS QOF Aspiration,PRC DELEGATED CO-COMMISSIONING,NHS BARNSLEY CCG GP PRACTICE,38424352,"4,735.85"
Department of Health,NHS Barnsley CCG,30/09/2021,Charges from CCG,CONTINUING HEALTHCARE ASSESSMENT & SUPPORT,NHS DONCASTER CCG,38198884,"107,173.00"
Department of Health,NHS Barnsley CCG,31/10/2021,Non-PFI Oprtng Lease-Bldgs-Lease Rent,ADMINISTRATION & BUSINESS SUPPORT,NHS PROPERTY SERVICES LTD,38432810,"25,486.25"
Department of Health,NHS Barnsley CCG,31/10/2021,Service Charge,ADMINISTRATION & BUSINESS SUPPORT,NHS PROPERTY SERVICES LTD,38432810,"9,598.31"
Department of Health,NHS Barnsley CCG,31/10/2021,Charges from CCG,BUSINESS INFORMATICS,NHS SHEFFIELD CCG,38354586,"12,500.00"
Department of Health,NHS Barnsley CCG,31/10/2021,Charges from CCG,COMMISSIONING SCHEMES,NHS SHEFFIELD CCG,38354586,"75,000.00"
Department of Health,NHS Barnsley CCG,31/10/2021,Clinical&Medical-Commercial Sector,ACUTE COMMISSIONING,ONEHEALTH GROUP,38557141,"132,791.98"
Department of Health,NHS Barnsley CCG,31/10/2021,Prescribing,PRESCRIBING,OTC DIRECT LTD TA NORTH WEST OSTOMY SUPPLIES,38299843,"70,550.00"
Department of Health,NHS Barnsley CCG,31/10/2021,Other Transport Costs,PATIENT TRANSPORT,PREMIER CARE DIRECT LTD,38432750,"35,025.67"
Department of Health,NHS Barnsley CCG,31/10/2021,Hcare Srv Rec Fdtn Trust-Contract Baseline,MENTAL HEALTH CONTRACTS,ROTHERHAM DONCASTER AND SOUTH HUMBER NHS FOUNDATION TRUST,38427195,"46,198.00"
Department of Health,NHS Barnsley CCG,31/10/2021,Hcare Srv Rec Fdtn Trust-Contract Baseline,ACUTE COMMISSIONING,ROTHERHAM NHS FOUNDATION TRUST,38427228,"389,808.00"
Department of Health,NHS Barnsley CCG,31/10/2021,Hcare Srv Rec Fdtn Trust-Contract Baseline,COMMUNITY SERVICES,ROTHERHAM NHS FOUNDATION TRUST,38427230,"43,320.00"
Department of Health,NHS Barnsley CCG,31/10/2021,Hcare Srv Rec Fdtn Trust-Contract Baseline,ACUTE COMMISSIONING,SHEFFIELD CHILDRENS NHS FOUNDATION TRUST,38427294,"151,876.00"
Department of Health,NHS Barnsley CCG,31/10/2021,Hcare Srv Rec Fdtn Trust-Contract Baseline,ACUTE COMMISSIONING,SHEFFIELD TEACHING HOSPITALS NHS FOUNDATION TRUST,38427283,"2,208,459.00"
Department of Health,NHS Barnsley CCG,31/10/2021,Hcare Srv Rec Fdtn Trust-Contract Baseline,COMMUNITY SERVICES,SOUTH WEST YORKSHIRE PARTNERSHIP NHS FOUNDATION TRUST,38427247,"750,775.00"
Department of Health,NHS Barnsley CCG,31/10/2021,Hcare Srv Rec Fdtn Trust-Contract Baseline,MENTAL HEALTH SERVICES - ADULTS,SOUTH WEST YORKSHIRE PARTNERSHIP NHS FOUNDATION TRUST,38427251,"2,550,090.00"
Department of Health,NHS Barnsley CCG,31/10/2021,Hcare Srv Rec Fdtn Trust-Contract Baseline,CHILD AND ADOLESCENT MENTAL HEALTH,SOUTH WEST YORKSHIRE PARTNERSHIP NHS FOUNDATION TRUST,38427255,"291,327.00"
Department of Health,NHS Barnsley CCG,31/10/2021,Hcare Srv Rec Fdtn Trust-Contract Baseline,IMPROVING ACCESS TO PSYCHOLOGICAL THERAPIES,SOUTH WEST YORKSHIRE PARTNERSHIP NHS FOUNDATION TRUST,38427259,"286,871.00"
Department of Health,NHS Barnsley CCG,31/10/2021,Hcare Srv Rec Fdtn Trust-Contract Baseline,COMMUNITY SERVICES,SOUTH WEST YORKSHIRE PARTNERSHIP NHS FOUNDATION TRUST,38427263,"1,541,362.00"
Department of Health,NHS Barnsley CCG,31/10/2021,Hcare Srv Rec Fdtn Trust-Contract Baseline,LONG TERM CONDITIONS,SOUTH WEST YORKSHIRE PARTNERSHIP NHS FOUNDATION TRUST,38427267,"45,886.00"
Department of Health,NHS Barnsley CCG,31/10/2021,Hcare Srv Rec Fdtn Trust-Non Contract,COMMUNITY SERVICES,SOUTH WEST YORKSHIRE PARTNERSHIP NHS FOUNDATION TRUST,38427271,"74,519.00"
Department of Health,NHS Barnsley CCG,31/10/2021,Hcare Srv Rec Fdtn Trust-Contract Baseline,LONG TERM CONDITIONS,SOUTH WEST YORKSHIRE PARTNERSHIP NHS FOUNDATION TRUST,38427279,"139,149.00"
Department of Health,NHS Barnsley CCG,31/10/2021,Clinical&Medical-Commercial Sector,ACUTE COMMISSIONING,SPAMEDICA LTD,38341660,"67,949.83"
Department of Health,NHS Barnsley CCG,31/10/2021,Hcare Srv Rec NHS Trust-Contract Baseline,NHS 111,YORKSHIRE AMBULANCE SERVICE NHS TRUST,38427233,"74,423.00"
Department of Health,NHS Barnsley CCG,31/10/2021,Hcare Srv Rec NHS Trust-Contract Baseline,PATIENT TRANSPORT,YORKSHIRE AMBULANCE SERVICE NHS TRUST,38427236,"152,719.00"
Department of Health,NHS Barnsley CCG,31/10/2021,Hcare Srv Rec NHS Trust-Contract Baseline,AMBULANCE SERVICES,YORKSHIRE AMBULANCE SERVICE NHS TRUST,38427239,"799,219.00"
,,,,,,,"35,111,361.89"
